[Event "Early-Titled-Tuesday-Blitz-November-28-2023"]
[Site "Chess.com"]
[Date "2023.11.28"]
[Round "7"]
[White "BogdanDeac"]
[Black "baki83"]
[Result "1-0"]
[WhiteElo "2997"]
[BlackElo "2826"]
[TimeControl "180+1"]
[EndTime "9:25:20 PST"]
[Termination "BogdanDeac won on time"]

1. d4 {[%clk 0:03:00.9]} 1... d5 {[%clk 0:02:59.9]} 2. c4 {[%clk 0:03:01.5]}
2... e6 {[%clk 0:03:00.5]} 3. Nf3 {[%clk 0:03:01.1]} 3... Nf6 {[%clk 0:03:00.9]}
4. g3 {[%clk 0:03:01.5]} 4... Bd6 {[%clk 0:03:01]} 5. Bg2 {[%clk 0:03:00.4]}
5... O-O {[%clk 0:03:00.6]} 6. O-O {[%clk 0:03:01.1]} 6... h6 {[%clk 0:03:00.9]}
7. b3 {[%clk 0:02:58.7]} 7... Nc6 {[%clk 0:03:00]} 8. Bb2 {[%clk 0:02:58.5]}
8... b6 {[%clk 0:02:57]} 9. Nc3 {[%clk 0:02:54.4]} 9... Bb7 {[%clk 0:02:56.4]}
10. Rc1 {[%clk 0:02:54.3]} 10... Re8 {[%clk 0:02:50.1]} 11. Re1 {[%clk
0:02:46.5]} 11... a6 {[%clk 0:02:41.3]} 12. e3 {[%clk 0:02:42.2]} 12... dxc4
{[%clk 0:02:06]} 13. bxc4 {[%clk 0:02:39.3]} 13... Rb8 {[%clk 0:02:02.2]} 14.
Nd2 {[%clk 0:02:28.6]} 14... e5 {[%clk 0:02:01.5]} 15. d5 {[%clk 0:02:22.6]}
15... Nb4 {[%clk 0:01:54.1]} 16. Nde4 {[%clk 0:02:17.2]} 16... Nxe4 {[%clk
0:01:52.9]} 17. Bxe4 {[%clk 0:02:18.1]} 17... a5 {[%clk 0:01:48.9]} 18. Bb1
{[%clk 0:02:13.9]} 18... Bc8 {[%clk 0:01:48.8]} 19. a3 {[%clk 0:01:29.4]} 19...
Na6 {[%clk 0:01:48.7]} 20. Qc2 {[%clk 0:01:30.1]} 20... f5 {[%clk 0:01:48.2]}
21. e4 {[%clk 0:01:29.7]} 21... Rf8 {[%clk 0:01:25.9]} 22. f4 {[%clk 0:01:24.7]}
22... exf4 {[%clk 0:01:13.1]} 23. e5 {[%clk 0:01:24.8]} 23... Bc5+ {[%clk
0:01:13.2]} 24. Kh1 {[%clk 0:01:15.8]} 24... fxg3 {[%clk 0:01:11.7]} 25. e6
{[%clk 0:00:31.5]} 25... Qh4 {[%clk 0:01:09.9]} 26. Qg2 {[%clk 0:00:31.6]} 26...
Bd6 {[%clk 0:01:03.1]} 27. Nb5 {[%clk 0:00:23.5]} 27... Bf4 {[%clk 0:00:52.4]}
28. Rc3 {[%clk 0:00:18.2]} 28... Nc5 {[%clk 0:00:48.5]} 29. Rf3 {[%clk 0:00:18]}
29... Ba6 {[%clk 0:00:38.6]} 30. Ref1 {[%clk 0:00:05.7]} 30... Bg5 {[%clk
0:00:24]} 31. Rxg3 {[%clk 0:00:05.5]} 31... Bxb5 {[%clk 0:00:24.2]} 32. cxb5
{[%clk 0:00:05.4]} 32... Rbe8 {[%clk 0:00:23.8]} 33. Bxf5 {[%clk 0:00:04.2]}
33... Qc4 {[%clk 0:00:20.6]} 34. h4 {[%clk 0:00:04.3]} 34... Qxh4+ {[%clk
0:00:20]} 35. Rh3 {[%clk 0:00:04.4]} 35... Qc4 {[%clk 0:00:18.5]} 36. Rg3 {[%clk
0:00:03.1]} 36... Rxf5 {[%clk 0:00:13.3]} 37. Rxf5 {[%clk 0:00:02.9]} 37... Ne4
{[%clk 0:00:14]} 38. Rg4 {[%clk 0:00:01.9]} 38... g6 {[%clk 0:00:01.7]} 39. Rxe4
{[%clk 0:00:02.3]} 39... Qd3 {[%clk 0:00:01]} 40. Rxg5 {[%clk 0:00:03.2]} 1-0

[Event "Early-Titled-Tuesday-Blitz-November-28-2023"]
[Site "Chess.com"]
[Date "2023.11.28"]
[Round "7"]
[White "AlexPapasimakopoulos"]
[Black "GMBenjaminBok"]
[Result "1-0"]
[WhiteElo "2649"]
[BlackElo "3007"]
[TimeControl "180+1"]
[EndTime "9:25:22 PST"]
[Termination "AlexPapasimakopoulos won by resignation"]

1. d4 {[%clk 0:03:00.9]} 1... Nf6 {[%clk 0:03:00]} 2. c4 {[%clk 0:03:01.2]} 2...
e6 {[%clk 0:03:00.5]} 3. Nc3 {[%clk 0:03:01.5]} 3... Bb4 {[%clk 0:03:00.3]} 4.
Qc2 {[%clk 0:03:01.7]} 4... d5 {[%clk 0:03:00.1]} 5. cxd5 {[%clk 0:03:01.8]}
5... exd5 {[%clk 0:03:01]} 6. Bg5 {[%clk 0:03:01.8]} 6... h6 {[%clk 0:03:01.4]}
7. Bxf6 {[%clk 0:02:58.8]} 7... Qxf6 {[%clk 0:03:02.3]} 8. e3 {[%clk 0:02:58.8]}
8... O-O {[%clk 0:02:59.1]} 9. a3 {[%clk 0:02:59.1]} 9... Bxc3+ {[%clk 0:02:59]}
10. Qxc3 {[%clk 0:02:58.8]} 10... c6 {[%clk 0:02:58.2]} 11. Nf3 {[%clk 0:02:59]}
11... Bf5 {[%clk 0:02:57.9]} 12. Be2 {[%clk 0:02:57.4]} 12... Nd7 {[%clk
0:02:57.9]} 13. O-O {[%clk 0:02:56.3]} 13... a5 {[%clk 0:02:57.2]} 14. b4 {[%clk
0:02:55.7]} 14... axb4 {[%clk 0:02:48.1]} 15. axb4 {[%clk 0:02:56.6]} 15... Rfc8
{[%clk 0:02:47.9]} 16. Rxa8 {[%clk 0:02:44.1]} 16... Rxa8 {[%clk 0:02:46.8]} 17.
Ra1 {[%clk 0:02:45]} 17... Qd8 {[%clk 0:02:35.2]} 18. h3 {[%clk 0:02:38]} 18...
g5 {[%clk 0:02:00.9]} 19. Nd2 {[%clk 0:02:25.1]} 19... Qf8 {[%clk 0:01:42.6]}
20. b5 {[%clk 0:02:13.3]} 20... Rxa1+ {[%clk 0:01:35.8]} 21. Qxa1 {[%clk
0:02:12.9]} 21... cxb5 {[%clk 0:01:28.2]} 22. Bxb5 {[%clk 0:02:12.8]} 22... Qb4
{[%clk 0:01:24.3]} 23. Bxd7 {[%clk 0:02:06.7]} 23... Bxd7 {[%clk 0:01:25.2]} 24.
Nf3 {[%clk 0:01:59.7]} 24... Kg7 {[%clk 0:01:25.2]} 25. Ne5 {[%clk 0:01:57]}
25... Be6 {[%clk 0:01:25.5]} 26. g4 {[%clk 0:01:44.7]} 26... b5 {[%clk 0:01:25]}
27. Nd3 {[%clk 0:01:38.1]} 27... Qd2 {[%clk 0:01:17.1]} 28. Nc5 {[%clk 0:01:38]}
28... Bxg4 {[%clk 0:00:29.5]} 29. hxg4 {[%clk 0:01:34]} 29... Qe2 {[%clk
0:00:30.1]} 30. Qb1 {[%clk 0:01:17]} 30... Qxg4+ {[%clk 0:00:29.6]} 31. Kf1
{[%clk 0:01:17.4]} 31... h5 {[%clk 0:00:11]} 32. Nd3 {[%clk 0:01:04.8]} 32...
Qe4 {[%clk 0:00:05.6]} 33. Qxb5 {[%clk 0:01:03.5]} 33... h4 {[%clk 0:00:05.1]}
34. Ne5 {[%clk 0:01:01.5]} 34... h3 {[%clk 0:00:03.6]} 35. Qd7 {[%clk
0:01:00.6]} 35... h2 {[%clk 0:00:02.4]} 36. Qxf7+ {[%clk 0:00:58.3]} 36... Kh6
{[%clk 0:00:02.8]} 37. Qf6+ {[%clk 0:00:48.9]} 37... Kh7 {[%clk 0:00:02.7]} 38.
Qe7+ {[%clk 0:00:43.9]} 38... Kh6 {[%clk 0:00:02.8]} 39. Qe6+ {[%clk 0:00:34.1]}
39... Kg7 {[%clk 0:00:02.8]} 40. Qe7+ {[%clk 0:00:25.8]} 40... Kh6 {[%clk
0:00:02.9]} 41. Nf7+ {[%clk 0:00:25.6]} 41... Kg6 {[%clk 0:00:02.6]} 42. Qxe4+
{[%clk 0:00:26.2]} 42... dxe4 {[%clk 0:00:03.1]} 43. Kg2 {[%clk 0:00:26.2]}
43... Kxf7 {[%clk 0:00:02.8]} 44. Kxh2 {[%clk 0:00:26.6]} 44... Ke6 {[%clk
0:00:03.7]} 45. Kg3 {[%clk 0:00:26.6]} 45... Kf5 {[%clk 0:00:04.6]} 46. f3
{[%clk 0:00:25.7]} 46... exf3 {[%clk 0:00:04.7]} 47. Kxf3 {[%clk 0:00:26]} 47...
g4+ {[%clk 0:00:05.4]} 48. Kg3 {[%clk 0:00:26.3]} 48... Kg5 {[%clk 0:00:06]} 49.
e4 {[%clk 0:00:26]} 49... Kh5 {[%clk 0:00:06.6]} 50. e5 {[%clk 0:00:25.3]} 50...
Kg5 {[%clk 0:00:07]} 51. d5 {[%clk 0:00:21.9]} 51... Kf5 {[%clk 0:00:07.3]} 52.
e6 {[%clk 0:00:21.9]} 52... Kf6 {[%clk 0:00:07.6]} 53. Kxg4 {[%clk 0:00:22.2]}
1-0

[Event "Early-Titled-Tuesday-Blitz-November-28-2023"]
[Site "Chess.com"]
[Date "2023.11.28"]
[Round "7"]
[White "sokidze"]
[Black "NovoselovRoman"]
[Result "1-0"]
[WhiteElo "2751"]
[BlackElo "2549"]
[TimeControl "180+1"]
[EndTime "9:25:25 PST"]
[Termination "sokidze won on time"]

1. d4 {[%clk 0:03:00.9]} 1... Nf6 {[%clk 0:02:59.2]} 2. c4 {[%clk 0:03:01.4]}
2... e5 {[%clk 0:02:59.6]} 3. dxe5 {[%clk 0:03:00.3]} 3... Ng4 {[%clk 0:03:00]}
4. e4 {[%clk 0:03:00.8]} 4... Nxe5 {[%clk 0:02:59.8]} 5. f4 {[%clk 0:03:01.4]}
5... Nec6 {[%clk 0:03:00.3]} 6. Bd2 {[%clk 0:02:57.2]} 6... Bb4 {[%clk
0:02:55.2]} 7. Bxb4 {[%clk 0:02:51.7]} 7... Nxb4 {[%clk 0:02:55.3]} 8. Nc3
{[%clk 0:02:51.9]} 8... O-O {[%clk 0:02:54.8]} 9. Qd2 {[%clk 0:02:50.6]} 9... d6
{[%clk 0:02:52.9]} 10. O-O-O {[%clk 0:02:49.5]} 10... a5 {[%clk 0:02:49]} 11.
Nf3 {[%clk 0:02:05.3]} 11... N8c6 {[%clk 0:02:43.5]} 12. f5 {[%clk 0:01:52.8]}
12... Re8 {[%clk 0:02:18.8]} 13. g4 {[%clk 0:01:50.4]} 13... Ne5 {[%clk
0:02:05.8]} 14. Nxe5 {[%clk 0:01:48.8]} 14... Rxe5 {[%clk 0:02:06.7]} 15. h4
{[%clk 0:01:46.6]} 15... Bd7 {[%clk 0:02:02.8]} 16. g5 {[%clk 0:01:39.5]} 16...
Bc6 {[%clk 0:02:00.2]} 17. Bg2 {[%clk 0:01:15.5]} 17... Na6 {[%clk 0:01:58.6]}
18. h5 {[%clk 0:01:08.9]} 18... Nc5 {[%clk 0:01:51.5]} 19. g6 {[%clk 0:01:00.4]}
19... fxg6 {[%clk 0:01:43.4]} 20. hxg6 {[%clk 0:00:52.3]} 20... hxg6 {[%clk
0:01:40.1]} 21. Kb1 {[%clk 0:00:49.2]} 21... gxf5 {[%clk 0:01:30.9]} 22. exf5
{[%clk 0:00:47.7]} 22... Qf6 {[%clk 0:01:30.6]} 23. Bxc6 {[%clk 0:00:44.6]}
23... bxc6 {[%clk 0:01:29.9]} 24. Qh2 {[%clk 0:00:40.4]} 24... Kf7 {[%clk
0:01:22.4]} 25. Qh5+ {[%clk 0:00:28]} 25... Ke7 {[%clk 0:01:21.8]} 26. Rhe1
{[%clk 0:00:24.3]} 26... Rf8 {[%clk 0:01:07.1]} 27. Rxe5+ {[%clk 0:00:20.8]}
27... Qxe5 {[%clk 0:00:58.5]} 28. Rf1 {[%clk 0:00:20.8]} 28... Kd7 {[%clk
0:00:47.5]} 29. Qg4 {[%clk 0:00:18.7]} 29... Kd8 {[%clk 0:00:42.2]} 30. a3
{[%clk 0:00:15.2]} 30... Nd3 {[%clk 0:00:27.3]} 31. Qf3 {[%clk 0:00:13.8]} 31...
Nc5 {[%clk 0:00:19.7]} 32. Qxc6 {[%clk 0:00:12.6]} 32... Rxf5 {[%clk 0:00:19.8]}
33. Rh1 {[%clk 0:00:11.4]} 33... Rf8 {[%clk 0:00:19]} 34. Ka2 {[%clk 0:00:10.7]}
34... g5 {[%clk 0:00:17]} 35. Nd5 {[%clk 0:00:10.5]} 35... Ne6 {[%clk
0:00:13.8]} 36. Rh7 {[%clk 0:00:07.8]} 1-0

[Event "Early-Titled-Tuesday-Blitz-November-28-2023"]
[Site "Chess.com"]
[Date "2023.11.28"]
[Round "7"]
[White "elmusmolamas"]
[Black "ATM622"]
[Result "0-1"]
[WhiteElo "2584"]
[BlackElo "2468"]
[TimeControl "180+1"]
[EndTime "9:25:29 PST"]
[Termination "ATM622 won on time"]

1. e4 {[%clk 0:03:00.9]} 1... c6 {[%clk 0:02:55.5]} 2. d4 {[%clk 0:02:57.8]}
2... d5 {[%clk 0:02:56.4]} 3. exd5 {[%clk 0:02:58.2]} 3... cxd5 {[%clk
0:02:57.3]} 4. Bf4 {[%clk 0:02:55.2]} 4... Nc6 {[%clk 0:02:56]} 5. c3 {[%clk
0:02:55.7]} 5... Nf6 {[%clk 0:02:53.3]} 6. Nd2 {[%clk 0:02:54.9]} 6... Bf5
{[%clk 0:02:50.9]} 7. Ngf3 {[%clk 0:02:52.5]} 7... e6 {[%clk 0:02:50.9]} 8. Bb5
{[%clk 0:02:48.5]} 8... Bd6 {[%clk 0:02:50.2]} 9. Ne5 {[%clk 0:02:46.3]} 9...
Qc7 {[%clk 0:02:50.2]} 10. Qa4 {[%clk 0:02:36.4]} 10... O-O {[%clk 0:02:35.1]}
11. Bxc6 {[%clk 0:01:58.8]} 11... bxc6 {[%clk 0:02:32]} 12. Nb3 {[%clk
0:01:59.5]} 12... Nh5 {[%clk 0:02:06.7]} 13. Be3 {[%clk 0:01:45.1]} 13... Bxe5
{[%clk 0:01:50.2]} 14. dxe5 {[%clk 0:01:46]} 14... Qxe5 {[%clk 0:01:37.6]} 15.
O-O {[%clk 0:01:45.7]} 15... Bd3 {[%clk 0:01:29.9]} 16. Rfe1 {[%clk 0:01:43.4]}
16... Qf6 {[%clk 0:01:08.9]} 17. Qxc6 {[%clk 0:01:39.8]} 17... Qg6 {[%clk
0:01:03.2]} 18. Nc5 {[%clk 0:01:09.4]} 18... Rac8 {[%clk 0:00:57.9]} 19. Qd6
{[%clk 0:01:08.6]} 19... Rfd8 {[%clk 0:00:45.9]} 20. Qe7 {[%clk 0:00:56.5]}
20... Re8 {[%clk 0:00:35]} 21. Qxa7 {[%clk 0:00:55.6]} 21... Rxc5 {[%clk
0:00:31.7]} 22. Qxc5 {[%clk 0:00:34.8]} 22... Be4 {[%clk 0:00:31.8]} 23. g3
{[%clk 0:00:33.9]} 23... Qg4 {[%clk 0:00:31.6]} 24. Qb5 {[%clk 0:00:29.9]} 24...
Nf6 {[%clk 0:00:18.7]} 25. Qe2 {[%clk 0:00:26.8]} 25... Bf3 {[%clk 0:00:18.1]}
26. Qf1 {[%clk 0:00:27.2]} 26... e5 {[%clk 0:00:12.7]} 27. h3 {[%clk 0:00:15.5]}
27... Qg6 {[%clk 0:00:12.8]} 28. Kh2 {[%clk 0:00:15.5]} 28... h5 {[%clk
0:00:12.7]} 29. Qg1 {[%clk 0:00:07.8]} 29... Ne4 {[%clk 0:00:12.2]} 30. b4
{[%clk 0:00:05.2]} 30... Nxc3 {[%clk 0:00:11.6]} 31. Rac1 {[%clk 0:00:05.5]}
31... Ne2 {[%clk 0:00:10.5]} 32. Rxe2 {[%clk 0:00:06.1]} 32... Bxe2 {[%clk
0:00:10.9]} 33. b5 {[%clk 0:00:06.8]} 33... Bxb5 {[%clk 0:00:10.7]} 34. Qg2
{[%clk 0:00:06]} 34... Bc6 {[%clk 0:00:08.2]} 35. a4 {[%clk 0:00:05.4]} 35...
Rc8 {[%clk 0:00:07.2]} 36. Bb6 {[%clk 0:00:03.9]} 36... d4 {[%clk 0:00:07.2]}
37. Qf1 {[%clk 0:00:03.6]} 37... Qe4 {[%clk 0:00:06.2]} 38. a5 {[%clk 0:00:03]}
38... Rb8 {[%clk 0:00:04.4]} 39. Bc7 {[%clk 0:00:02.4]} 39... Rb2 {[%clk
0:00:03.7]} 40. a6 {[%clk 0:00:03]} 40... Ra2 {[%clk 0:00:03.5]} 41. a7 {[%clk
0:00:02.4]} 41... Rxa7 {[%clk 0:00:02.7]} 42. Bb6 {[%clk 0:00:03.3]} 42... Ra2
{[%clk 0:00:02.8]} 43. Bc7 {[%clk 0:00:03.4]} 43... Qf3 {[%clk 0:00:03]} 0-1

[Event "Early-Titled-Tuesday-Blitz-November-28-2023"]
[Site "Chess.com"]
[Date "2023.11.28"]
[Round "7"]
[White "Igor_Lysyj"]
[Black "h4parah5"]
[Result "0-1"]
[WhiteElo "2815"]
[BlackElo "2941"]
[TimeControl "180+1"]
[EndTime "9:25:30 PST"]
[Termination "h4parah5 won by checkmate"]

1. d4 {[%clk 0:02:58]} 1... Nf6 {[%clk 0:02:59.4]} 2. c4 {[%clk 0:02:57.9]} 2...
g6 {[%clk 0:02:59.8]} 3. Nc3 {[%clk 0:02:57.3]} 3... Bg7 {[%clk 0:03:00.7]} 4.
e4 {[%clk 0:02:56.8]} 4... O-O {[%clk 0:03:01.6]} 5. Nf3 {[%clk 0:02:56.2]} 5...
d6 {[%clk 0:03:01.8]} 6. Be3 {[%clk 0:02:56]} 6... Nbd7 {[%clk 0:02:59.9]} 7.
Be2 {[%clk 0:02:54.7]} 7... e5 {[%clk 0:02:59.3]} 8. O-O {[%clk 0:02:54.5]} 8...
c6 {[%clk 0:02:57.5]} 9. Qc2 {[%clk 0:02:52.7]} 9... Qe7 {[%clk 0:02:57.1]} 10.
Rad1 {[%clk 0:02:51]} 10... a6 {[%clk 0:02:48]} 11. d5 {[%clk 0:02:41.2]} 11...
c5 {[%clk 0:02:42.2]} 12. Bg5 {[%clk 0:02:36.9]} 12... h6 {[%clk 0:02:39.4]} 13.
Bc1 {[%clk 0:02:36.7]} 13... Re8 {[%clk 0:02:28.1]} 14. Rfe1 {[%clk 0:02:31.3]}
14... Nf8 {[%clk 0:02:26.1]} 15. g3 {[%clk 0:02:25.3]} 15... b6 {[%clk
0:02:22.3]} 16. Nh4 {[%clk 0:02:21.6]} 16... h5 {[%clk 0:02:19.8]} 17. f3 {[%clk
0:02:19.5]} 17... N6h7 {[%clk 0:02:13.8]} 18. Ng2 {[%clk 0:01:56.4]} 18... Ng5
{[%clk 0:02:11.1]} 19. Rf1 {[%clk 0:01:40.9]} 19... Nh3+ {[%clk 0:02:08.6]} 20.
Kh1 {[%clk 0:01:41.2]} 20... Nh7 {[%clk 0:02:00.9]} 21. Bd3 {[%clk 0:01:39.1]}
21... Bd7 {[%clk 0:01:48.5]} 22. a4 {[%clk 0:01:36.6]} 22... a5 {[%clk
0:01:47.6]} 23. Rde1 {[%clk 0:01:35.7]} 23... Nf6 {[%clk 0:01:22.8]} 24. Nb5
{[%clk 0:01:34.4]} 24... Rf8 {[%clk 0:01:21]} 25. Nh4 {[%clk 0:01:20.2]} 25...
Nh7 {[%clk 0:01:13.1]} 26. Qg2 {[%clk 0:01:17.8]} 26... Bf6 {[%clk 0:01:05.1]}
27. Bh6 {[%clk 0:01:15.2]} 27... Rfd8 {[%clk 0:01:04.4]} 28. b3 {[%clk
0:00:57.2]} 28... Kh8 {[%clk 0:00:49.4]} 29. Bc1 {[%clk 0:00:48.1]} 29... Rg8
{[%clk 0:00:45]} 30. Bc2 {[%clk 0:00:38.4]} 30... Bxh4 {[%clk 0:00:40.3]} 31.
gxh4 {[%clk 0:00:38.1]} 31... g5 {[%clk 0:00:40.9]} 32. hxg5 {[%clk 0:00:25.8]}
32... N7xg5 {[%clk 0:00:41.8]} 33. Qe2 {[%clk 0:00:23.7]} 33... Rg6 {[%clk
0:00:23.5]} 34. f4 {[%clk 0:00:23.6]} 34... Bg4 {[%clk 0:00:23.4]} 35. Qd3
{[%clk 0:00:22.1]} 35... Nxf4 {[%clk 0:00:20.9]} 36. Bxf4 {[%clk 0:00:17.5]}
36... exf4 {[%clk 0:00:21]} 37. Rxf4 {[%clk 0:00:16]} 37... Rag8 {[%clk
0:00:20.1]} 38. Qc3+ {[%clk 0:00:15.7]} 38... Kh7 {[%clk 0:00:19.6]} 39. Ref1
{[%clk 0:00:15.6]} 39... Kh6 {[%clk 0:00:18]} 40. e5 {[%clk 0:00:15.2]} 40...
dxe5 {[%clk 0:00:17.2]} 41. Bxg6 {[%clk 0:00:14.6]} 41... exf4 {[%clk
0:00:16.9]} 42. Bb1 {[%clk 0:00:13.7]} 42... Bh3 {[%clk 0:00:15.2]} 43. Re1
{[%clk 0:00:13]} 43... Qd8 {[%clk 0:00:12.5]} 44. d6 {[%clk 0:00:11.4]} 44...
Qa8+ {[%clk 0:00:11.1]} 45. Be4 {[%clk 0:00:03.6]} 45... Nxe4 {[%clk 0:00:11.2]}
46. Qf3 {[%clk 0:00:03.7]} 46... Nf2# {[%clk 0:00:11.1]} 0-1

[Event "Early-Titled-Tuesday-Blitz-November-28-2023"]
[Site "Chess.com"]
[Date "2023.11.28"]
[Round "7"]
[White "Kotofeyca"]
[Black "Sofia_Blokhin"]
[Result "1-0"]
[WhiteElo "2446"]
[BlackElo "2265"]
[TimeControl "180+1"]
[EndTime "9:25:31 PST"]
[Termination "Kotofeyca won on time"]

1. d4 {[%clk 0:03:00.9]} 1... f5 {[%clk 0:02:56.4]} 2. g3 {[%clk 0:02:59.9]}
2... Nf6 {[%clk 0:02:54.8]} 3. Bg2 {[%clk 0:03:00.5]} 3... g6 {[%clk 0:02:54.8]}
4. Nd2 {[%clk 0:03:01.1]} 4... Bg7 {[%clk 0:02:54.5]} 5. e4 {[%clk 0:03:01.6]}
5... fxe4 {[%clk 0:02:53.1]} 6. Nxe4 {[%clk 0:03:02.5]} 6... O-O {[%clk
0:02:52.1]} 7. f4 {[%clk 0:02:58.8]} 7... d6 {[%clk 0:02:47.5]} 8. Nxf6+ {[%clk
0:02:41.9]} 8... Bxf6 {[%clk 0:02:39.1]} 9. Nf3 {[%clk 0:02:40.7]} 9... Bg4
{[%clk 0:02:33.7]} 10. h3 {[%clk 0:02:31.2]} 10... Be6 {[%clk 0:02:27.3]} 11.
O-O {[%clk 0:02:27.1]} 11... Bc4 {[%clk 0:02:21.7]} 12. Re1 {[%clk 0:02:24.4]}
12... Re8 {[%clk 0:02:16.5]} 13. b3 {[%clk 0:02:22.6]} 13... Bf7 {[%clk
0:02:11.8]} 14. Bb2 {[%clk 0:02:09.6]} 14... c5 {[%clk 0:02:08.8]} 15. Qd2
{[%clk 0:02:01.4]} 15... Nc6 {[%clk 0:02:02]} 16. c4 {[%clk 0:01:58.9]} 16...
cxd4 {[%clk 0:01:57.1]} 17. Nxd4 {[%clk 0:01:58.5]} 17... Qb6 {[%clk 0:01:41.4]}
18. Bxc6 {[%clk 0:01:35.4]} 18... bxc6 {[%clk 0:01:36.6]} 19. Kh2 {[%clk
0:01:34]} 19... e5 {[%clk 0:01:31]} 20. Nf3 {[%clk 0:01:24.9]} 20... e4 {[%clk
0:01:03.6]} 21. Bxf6 {[%clk 0:01:14.2]} 21... exf3 {[%clk 0:01:03.4]} 22. Bd4
{[%clk 0:01:13.1]} 22... c5 {[%clk 0:01:00.1]} 23. Bb2 {[%clk 0:01:05.1]} 23...
d5 {[%clk 0:00:49.1]} 24. cxd5 {[%clk 0:01:01.5]} 24... c4 {[%clk 0:00:40.2]}
25. bxc4 {[%clk 0:00:45.3]} 25... g5 {[%clk 0:00:23.3]} 26. f5 {[%clk
0:00:36.3]} 26... Rab8 {[%clk 0:00:20.5]} 27. Bd4 {[%clk 0:00:26.6]} 27... Qd6
{[%clk 0:00:15.8]} 28. Qxg5+ {[%clk 0:00:25.5]} 28... Bg6 {[%clk 0:00:12.5]} 29.
fxg6 {[%clk 0:00:25.8]} 29... hxg6 {[%clk 0:00:12.4]} 30. Qh6 {[%clk 0:00:22.7]}
30... Re7 {[%clk 0:00:10.9]} 31. Qh8+ {[%clk 0:00:21.3]} 31... Kf7 {[%clk
0:00:10.2]} 32. Qg7+ {[%clk 0:00:18.8]} 32... Ke8 {[%clk 0:00:10.2]} 33. Rxe7+
{[%clk 0:00:15.1]} 33... Qxe7 {[%clk 0:00:10.6]} 34. Qxg6+ {[%clk 0:00:13.1]}
34... Kf8 {[%clk 0:00:09.8]} 35. Qf5+ {[%clk 0:00:12.1]} 35... Ke8 {[%clk
0:00:10]} 36. Qe6 {[%clk 0:00:11.3]} 36... Qxe6 {[%clk 0:00:08]} 37. dxe6 {[%clk
0:00:12.2]} 37... Ke7 {[%clk 0:00:08.5]} 38. Kg1 {[%clk 0:00:12.1]} 38... Kxe6
{[%clk 0:00:08.7]} 39. Kf2 {[%clk 0:00:12.7]} 39... Rc8 {[%clk 0:00:07.8]} 40.
Rc1 {[%clk 0:00:12.8]} 40... Rb8 {[%clk 0:00:05.3]} 41. Kxf3 {[%clk 0:00:12.6]}
41... Rf8+ {[%clk 0:00:05.2]} 42. Ke3 {[%clk 0:00:12.3]} 42... Re8 {[%clk
0:00:05.1]} 43. Kd3 {[%clk 0:00:13.2]} 43... Rd8 {[%clk 0:00:05.5]} 44. c5
{[%clk 0:00:13.7]} 44... Kd5 {[%clk 0:00:05.2]} 45. c6 {[%clk 0:00:14.6]} 45...
Rf8 {[%clk 0:00:04.6]} 46. c7 {[%clk 0:00:15]} 46... Rf3+ {[%clk 0:00:05.2]} 47.
Be3 {[%clk 0:00:15.3]} 47... Rf8 {[%clk 0:00:03.4]} 48. c8=Q {[%clk 0:00:15.7]}
48... Rxc8 {[%clk 0:00:02.1]} 49. Rxc8 {[%clk 0:00:16.6]} 1-0

[Event "Early-Titled-Tuesday-Blitz-November-28-2023"]
[Site "Chess.com"]
[Date "2023.11.28"]
[Round "7"]
[White "crazy_m_attack"]
[Black "Sconko"]
[Result "1-0"]
[WhiteElo "2437"]
[BlackElo "2234"]
[TimeControl "180+1"]
[EndTime "9:25:33 PST"]
[Termination "crazy_m_attack won by resignation"]

1. e4 {[%clk 0:03:00.9]} 1... c5 {[%clk 0:02:59]} 2. Nf3 {[%clk 0:03:00.7]} 2...
d6 {[%clk 0:02:57.9]} 3. d4 {[%clk 0:02:59.5]} 3... cxd4 {[%clk 0:02:58.8]} 4.
Nxd4 {[%clk 0:03:00.4]} 4... Nf6 {[%clk 0:02:57.8]} 5. Nc3 {[%clk 0:03:00.2]}
5... a6 {[%clk 0:02:57.3]} 6. f3 {[%clk 0:02:57.4]} 6... e5 {[%clk 0:02:56.3]}
7. Nb3 {[%clk 0:02:56.9]} 7... Be7 {[%clk 0:02:54]} 8. Be3 {[%clk 0:02:56.3]}
8... Be6 {[%clk 0:02:53.5]} 9. Qd2 {[%clk 0:02:56.2]} 9... Nbd7 {[%clk
0:02:50.9]} 10. O-O-O {[%clk 0:02:52.9]} 10... O-O {[%clk 0:02:49.8]} 11. g4
{[%clk 0:02:52.6]} 11... b5 {[%clk 0:02:49]} 12. g5 {[%clk 0:02:52.9]} 12... b4
{[%clk 0:02:48.3]} 13. gxf6 {[%clk 0:02:52.7]} 13... bxc3 {[%clk 0:02:47.8]} 14.
Qxc3 {[%clk 0:02:53.1]} 14... Nxf6 {[%clk 0:02:47.1]} 15. Na5 {[%clk 0:02:53.6]}
15... Qd7 {[%clk 0:02:46.1]} 16. Nc6 {[%clk 0:02:47.2]} 16... Rfc8 {[%clk
0:02:44.9]} 17. Nxe7+ {[%clk 0:02:46.3]} 17... Qxe7 {[%clk 0:02:44.7]} 18. Qa5
{[%clk 0:02:45.3]} 18... Rc6 {[%clk 0:02:43.6]} 19. Rg1 {[%clk 0:02:43]} 19...
Qb7 {[%clk 0:01:57.9]} 20. Rg2 {[%clk 0:02:00.6]} 20... Rac8 {[%clk 0:01:51.9]}
21. c3 {[%clk 0:01:51.8]} 21... d5 {[%clk 0:01:26.3]} 22. Bg5 {[%clk 0:01:40.4]}
22... Rc5 {[%clk 0:00:44.6]} 23. Qxa6 {[%clk 0:01:14.9]} 23... Qc7 {[%clk
0:00:19.8]} 24. Bxf6 {[%clk 0:00:22]} 24... d4 {[%clk 0:00:16.5]} 25. Rxg7+
{[%clk 0:00:17.9]} 25... Kf8 {[%clk 0:00:16.5]} 26. Qa3 {[%clk 0:00:06.7]} 26...
Qd6 {[%clk 0:00:13.4]} 27. Kb1 {[%clk 0:00:04.2]} 27... Bxa2+ {[%clk 0:00:11.2]}
28. Qxa2 {[%clk 0:00:03.5]} 28... Qxf6 {[%clk 0:00:11.9]} 29. cxd4 {[%clk
0:00:03.3]} 29... exd4 {[%clk 0:00:10.4]} 30. Rg1 {[%clk 0:00:02.6]} 30... Qh6
{[%clk 0:00:06.6]} 31. Bd3 {[%clk 0:00:01.9]} 31... Qe3 {[%clk 0:00:06]} 32. Qb3
{[%clk 0:00:01.6]} 32... Qf2 {[%clk 0:00:04.1]} 33. Rgf1 {[%clk 0:00:01.9]}
33... Qe3 {[%clk 0:00:04.1]} 34. Bc2 {[%clk 0:00:02.4]} 34... Qf4 {[%clk
0:00:04.5]} 35. Bd3 {[%clk 0:00:02.5]} 35... Rb8 {[%clk 0:00:04.6]} 36. Qa3
{[%clk 0:00:02.3]} 36... Qe5 {[%clk 0:00:03.9]} 37. Rc1 {[%clk 0:00:02.8]} 37...
Rc8 {[%clk 0:00:03.6]} 38. Rxc5 {[%clk 0:00:03]} 38... Qxc5 {[%clk 0:00:04.3]}
39. Rc1 {[%clk 0:00:02.5]} 39... Qxa3 {[%clk 0:00:02.8]} 40. Rxc8+ {[%clk
0:00:03.4]} 1-0